Workbook

Sheet Cover
A3: Navigator
C5: =Client_Name -> Go Skills Financial Modeling Training
C6: =Model_Name -> Go Skills Model 22 - Revenue Part 2 End.xlsm
C14: Primary Developer: Liam Bastick
C16: General Cover Notes:
C17: Financial Model for Training Course.
C21: Any queries, please e-mail: | G21: Liam Bastick

Sheet Navigator
A1: Navigator
A2: =Model_Name -> Go Skills Model 22 - Revenue Part 2 End.xlsm
A3: Navigator
E4: Error Checks: | G4: =Overall_Error_Check -> 0
B7: 1 | C7: Table of Contents
F9: Cover
F10: Style Guide
F11: Model Parameters
F12: Assumptions
F13: Calculations
F14: Opening Balance Sheet
F15: Income Statement
F16: Balance Sheet
F17: Cash Flow Statement
F18: Timing
F19: Error Checks
F20: Change Log

Sheet Style Guide
A1: =IF(ISERROR(RIGHT(CELL("filename",A1),LEN(CELL("filename",A1))-FIND("]",CELL("filename",A1)))), "", RIGHT(CELL("filename",A1),LEN(CELL("filename",A1))-FIND("]",CELL("filename",A1)))) -> Style Guide
A2: =Model_Name -> Go Skills Model 22 - Revenue Part 2 End.xlsm
A3: Navigator
E4: Error Checks: | I4: =Overall_Error_Check -> 0
B6: =MAX($B$5:$B5)+1 -> 1 | C6: Formatting of Headers / Dividers
C8: Description | I8: Display | K8: Style Name
C10: Sheet Title | I10: =C10 -> Sheet Title | K10: Sheet Title
C11: Model Name | I11: =C11 -> Model Name | K11: Model Name
C13: Header 1 | I13: =C13 -> Header 1 | K13: Header 1
C14: Header 2 | I14: =C14 -> Header 2 | K14: Header 2
C15: Header 3 | I15: =C15 -> Header 3 | K15: Header 3
C16: Header 4 | I16: =C16 -> Header 4 | K16: Header 4
C18: Notes | I18: =C18 -> Notes | K18: Notes
C20: Table Heading | I20: =C20 -> Table Heading | K20: Table Heading
B23: =MAX($B$5:$B22)+1 -> 2 | C23: Individual Cell Styles
C25: Description | I25: Display | K25: Style Name
C27: Assumption | I27: Assumption | K27: =C27 -> Assumption
C29: Constraint | I29: =C29 -> Constraint | K29: =C29 -> Constraint
C31: Empty | K31: =C31 -> Empty
C33: Error Check | I33: 0 | K33: =C33 -> Error Check
C35: Hyperlink | I35: Hyperlink | K35: =C35 -> Hyperlink
C37: Internal Reference | I37: =Days_in_Year -> 365 | K37: =C37 -> Internal Reference
C39: Line Calculation | I39: 77 | K39: Line Calc
C41: Line Total | I41: =I39 -> 77 | K41: =C41 -> Line Total
C43: Parameter | I43: 365 | K43: =C43 -> Parameter
C45: Range Name Description | I45: Not_Named | K45: =C45 -> Range Name Description
C47: Row Reference | I47: =ROW(C47) -> 47 | K47: Row Ref
C49: Row Summary | I49: =I41 -> 77 | K49: =C49 -> Row Summary
C51: Units | I51: A$ | K51: =C51 -> Units
C53: WIP | K53: =C53 -> WIP
B56: =MAX($B$5:$B55)+1 -> 3 | C56: Numerical Styles
C58: Description | I58: Display | K58: Style Name
C60: Comma | I60: 123456.789 | K60: =C60 -> Comma
C62: Comma [0] | I62: -123456.789 | K62: Comma [0]
C64: Currency | I64: 123456.789 | K64: Currency
C66: Currency [0] | I66: 123456.789 | K66: Currency [0]
C68: Date | I68: =TODAY() -> 2017-04-07 | K68: =C68 -> Date
C70: Date Heading | I70: =TODAY() -> 2017-04-07 | K70: =C70 -> Date Heading
C72: Numbers 0 | I72: -123456.789 | K72: =C72 -> Numbers 0
C74: Percent | I74: 0.5 | K74: =C74 -> Percent

Sheet Model Parameters
A1: =IF(ISERROR(RIGHT(CELL("filename",A1),LEN(CELL("filename",A1))-FIND("]",CELL("filename",A1)))), "", RIGHT(CELL("filename",A1),LEN(CELL("filename",A1))-FIND("]",CELL("filename",A1)))) -> Model Parameters
A2: =Model_Name -> Go Skills Model 22 - Revenue Part 2 End.xlsm
A3: Navigator
E4: Error Checks: | I4: =Overall_Error_Check -> 0
B6: =MAX($B$5:$B5)+1 -> 1 | C6: General
C8: Key Inputs
E10: General
E11: Model Name | G11: =IF(ISERROR(OR(FIND("[",CELL("filename",A1)),FIND("]",CELL("filename",A1)))),"",MID(CELL("filename",A1),FIND("[",CELL("filename",A1))+1,FIND("]",CELL("filename",A1))-FIND("[",CELL("filename",A1))-1)) -> Go Skills Model 22 - Revenue Part 2 End.xlsm
E12: Client Name | G12: Go Skills Financial Modeling Training
B15: =MAX($B$5:$B14)+1 -> 2 | C15: General Range Names
C17: Technical Assumptions
E19: Days in Year | G19: 365 | I19: Days_in_Year
E20: Months in Month | G20: 1 | I20: Months_in_Month
E21: Months in Quarter | G21: 3 | I21: Months_in_Qtr
E22: Months in Half Yr | G22: 6 | I22: Months_in_Half_Yr
E23: Months in Year | G23: 12 | I23: Months_in_Year
E24: Quarters in Year | G24: 4 | I24: Quarters_in_Year
E26: Rounding Accuracy | G26: 5 | I26: Rounding_Accuracy
E28: Very Large Number | G28: 1e+99 | I28: Very_Large_Number
E29: Very Small Number | G29: 1e-08 | I29: Very_Small_Number
E31: Thousand | G31: 1000 | I31: Thousand
B35: =MAX($B$5:$B34)+1 -> 3 | C35: Technical assumptions
C37: Units
E39: Unit | G39: # | I39: Unit
E40: Currency | G40: US$'000 | I40: Currency
E41: Dollars | G41: $ | I41: Dollars
E42: Boolean | G42: [1,0] | I42: Boolean
E43: Percentage | G43: % | I43: Percentage
E44: No of Days | G44: # Days | I44: No_of_Days
E45: Year | G45: Year | I45: Year
E46: No of Years | G46: # Year(s) | I46: No_of_Years
E47: Multiplier | G47: x | I47: Multiplier
E48: Weight | G48: kg | I48: Weight
E49: Price / Weight | G49: $/kg | I49: Price_Weight
C52: Financial Statement Abbreviations
E54: Income Statement | G54: IS | I54: Income_Statement
E55: Balance Sheet | G55: BS | I55: Balance_Sheet
E56: Cash Flow Statement | G56: CFS | I56: Cash_Flow_Statement

Sheet Assumptions
A1: =IF(ISERROR(RIGHT(CELL("filename",A1),LEN(CELL("filename",A1))-FIND("]",CELL("filename",A1)))), "", RIGHT(CELL("filename",A1),LEN(CELL("filename",A1))-FIND("]",CELL("filename",A1)))) -> Assumptions
A2: =Model_Name -> Go Skills Model 22 - Revenue Part 2 End.xlsm
A3: Navigator
B4: Error Checks: | F4: =Overall_Error_Check -> 0
J5: =Timing!J5 -> 2020-06-30 | K5: =Timing!K5 -> 2021-06-30 | L5: =Timing!L5 -> 2022-06-30 | M5: =Timing!M5 -> 2023-06-30 | N5: =Timing!N5 -> 2024-06-30
C6: Start Date | J6: =Timing!J6 -> 2019-07-01 | K6: =Timing!K6 -> 2020-07-01 | L6: =Timing!L6 -> 2021-07-01 | M6: =Timing!M6 -> 2022-07-01 | N6: =Timing!N6 -> 2023-07-01
C7: End Date | J7: =Timing!J7 -> 2020-06-30 | K7: =Timing!K7 -> 2021-06-30 | L7: =Timing!L7 -> 2022-06-30 | M7: =Timing!M7 -> 2023-06-30 | N7: =Timing!N7 -> 2024-06-30
C8: Number of Days | J8: =Timing!J8 -> 366 | K8: =Timing!K8 -> 365 | L8: =Timing!L8 -> 365 | M8: =Timing!M8 -> 365 | N8: =Timing!N8 -> 366
C9: Counter | J9: =Timing!J9 -> 1 | K9: =Timing!K9 -> 2 | L9: =Timing!L9 -> 3 | M9: =Timing!M9 -> 4 | N9: =Timing!N9 -> 5
B11: =MAX($B$10:$B10)+1 -> 1 | C11: =A1 -> Assumptions
C13: Revenue and related
D15: Sales
E17: Projected sales | G17: =Unit -> # | J17: 100 | K17: 200 | L17: 300 | M17: 400 | N17: 500
E18: Unit price | G18: =Currency -> US$'000 | J18: 15
E19: Inflation | G19: =Percentage -> % | K19: 0.03 | L19: 0.04 | M19: 0.05 | N19: 0.06
D21: Working capital
E23: Days receivable | G23: =No._of_days -> # Days | J23: 60 | K23: 60 | L23: 60 | M23: 60 | N23: 60

Sheet Calculations
A1: =IF(ISERROR(RIGHT(CELL("filename",A1),LEN(CELL("filename",A1))-FIND("]",CELL("filename",A1)))), "", RIGHT(CELL("filename",A1),LEN(CELL("filename",A1))-FIND("]",CELL("filename",A1)))) -> Calculations
A2: =Model_Name -> Go Skills Model 22 - Revenue Part 2 End.xlsm
A3: Navigator
B4: Error Checks: | F4: =Overall_Error_Check -> 0
J5: =Timing!J5 -> 2020-06-30 | K5: =Timing!K5 -> 2021-06-30 | L5: =Timing!L5 -> 2022-06-30 | M5: =Timing!M5 -> 2023-06-30 | N5: =Timing!N5 -> 2024-06-30
C6: Start Date | J6: =Timing!J6 -> 2019-07-01 | K6: =Timing!K6 -> 2020-07-01 | L6: =Timing!L6 -> 2021-07-01 | M6: =Timing!M6 -> 2022-07-01 | N6: =Timing!N6 -> 2023-07-01
C7: End Date | J7: =Timing!J7 -> 2020-06-30 | K7: =Timing!K7 -> 2021-06-30 | L7: =Timing!L7 -> 2022-06-30 | M7: =Timing!M7 -> 2023-06-30 | N7: =Timing!N7 -> 2024-06-30
C8: Number of Days | J8: =Timing!J8 -> 366 | K8: =Timing!K8 -> 365 | L8: =Timing!L8 -> 365 | M8: =Timing!M8 -> 365 | N8: =Timing!N8 -> 366
C9: Counter | J9: =Timing!J9 -> 1 | K9: =Timing!K9 -> 2 | L9: =Timing!L9 -> 3 | M9: =Timing!M9 -> 4 | N9: =Timing!N9 -> 5
B11: =MAX($B$10:$B10)+1 -> 1 | C11: =A1 -> Calculations
C13: =Assumptions!C13 -> Revenue and related
D15: =Assumptions!D15 -> Sales
E17: =Assumptions!E17 -> Projected sales | G17: =Unit -> # | J17: =Assumptions!J17 -> 100 | K17: =Assumptions!K17 -> 200 | L17: =Assumptions!L17 -> 300 | M17: =Assumptions!M17 -> 400 | N17: =Assumptions!N17 -> 500
E18: =Assumptions!E18 -> Unit price | G18: =Currency -> US$'000 | J18: =Assumptions!J18 -> 15
E19: =Assumptions!E19 -> Inflation | G19: =Percentage -> % | K19: =Assumptions!K19 -> 0.03 | L19: =Assumptions!L19 -> 0.04 | M19: =Assumptions!M19 -> 0.05 | N19: =Assumptions!N19 -> 0.06
E21: Price per unit | G21: =G18 -> US$'000 | J21: =IF(J$9=1,$J$18,I21*(1+J19)) -> 15 | K21: =IF(K$9=1,$J$18,J21*(1+K19)) -> 15.45 | L21: 16.068 | M21: 16.8714 | N21: 17.883684
E23: Revenue | G23: =Currency -> US$'000 | J23: =J17*J21 -> 1500 | K23: =K17*K21 -> 3090 | L23: 4820.4 | M23: 6748.56 | N23: 8941.842
D25: Working capital
E27: Days receivable | G27: =No._of_days -> # Days | J27: =Assumptions!J23 -> 60 | K27: =Assumptions!K23 -> 60 | L27: =Assumptions!L23 -> 60 | M27: =Assumptions!M23 -> 60 | N27: =Assumptions!N23 -> 60
E29: Days in period | G29: =No._of_days -> # Days | J29: =J$8 -> 366 | K29: =K$8 -> 365 | L29: 365 | M29: 365 | N29: 366
E31: Closing receivables | G31: =Currency -> US$'000 | J31: =J23*J27/J29 -> 245.9016393 | K31: =K23*K27/K29 -> 507.9452055 | L31: 792.3945205 | M31: 1109.352329 | N31: 1465.875738
D33: Control account
E35: Opening receivables | G35: =Currency -> US$'000 | J35: =I38 -> 0 | K35: =J38 -> 245.9016393 | L35: 507.9452055 | M35: 792.3945205 | N35: 1109.352329 | O35: BS
E36: Revenue | G36: =Currency -> US$'000 | J36: =J23 -> 1500 | K36: =K23 -> 3090 | L36: 4820.4 | M36: 6748.56 | N36: 8941.842 | O36: IS
E37: Cash receipts | G37: =Currency -> US$'000 | J37: =J38-SUM(J35:J36) -> -1254.098361 | K37: =K38-SUM(K35:K36) -> -2827.956434 | L37: -4535.950685 | M37: -6431.602192 | N37: -8585.318591 | O37: CFS
E38: Closing receivables | G38: =Currency -> US$'000 | I38: ='Opening Balance Sheet'!$I$15 -> 0 | J38: =J31 -> 245.9016393 | K38: =K31 -> 507.9452055 | L38: 792.3945205 | M38: 1109.352329 | N38: 1465.875738 | O38: BS

Sheet Opening Balance Sheet
A1: =IF(ISERROR(RIGHT(CELL("filename",A1),LEN(CELL("filename",A1))-FIND("]",CELL("filename",A1)))), "", RIGHT(CELL("filename",A1),LEN(CELL("filename",A1))-FIND("]",CELL("filename",A1)))) -> Opening Balance Sheet
A2: =Model_Name -> Go Skills Model 22 - Revenue Part 2 End.xlsm
A3: Navigator
B4: Error Checks: | F4: =Overall_Error_Check -> 0
K5: =Model_Start_Date-1 -> 2019-06-30
C6: Start Date
C7: End Date
C8: Number of Days
C9: Counter
B11: =MAX($B$10:$B10)+1 -> 1 | C11: =A1 -> Opening Balance Sheet
C13: Current assets
D14: Cash | G14: =Currency -> US$'000 | K14: 250
D15: Accounts receivable | G15: =Currency -> US$'000 | K15: 50
D16: Inventory | G16: =Currency -> US$'000 | K16: 0
D17: Other current assets | G17: =Currency -> US$'000 | K17: 10
D18: Total current assets | G18: =Currency -> US$'000 | K18: =SUM(K14:K17) -> 310
C20: Non-current assets
D21: PP&E | G21: =Currency -> US$'000 | K21: 450
D22: Deferred tax assets | G22: =Currency -> US$'000 | K22: 75
D23: Total non-current assets | G23: =Currency -> US$'000 | K23: =SUM(K21:K22) -> 525
C25: Total assets | G25: =Currency -> US$'000 | K25: =K18+K23 -> 835
C27: Current liabilities
D28: Accounts payable | G28: =Currency -> US$'000 | K28: 30
D29: Interest payable | G29: US$'000 | K29: 20
D30: Dividends payable | G30: US$'000 | K30: 15
D31: Tax payable | G31: US$'000 | K31: 40
D32: Other current liabilities | G32: US$'000 | K32: 10
D33: Total current liabilities | G33: US$'000 | K33: =SUM(K28:K32) -> 115
C35: Non-current liabilities
D36: Debt | G36: =Currency -> US$'000 | K36: 150
D37: Deferred tax liabilities | G37: =Currency -> US$'000 | K37: 25
D38: Total non-current liabilities | G38: =Currency -> US$'000 | K38: =SUM(K36:K37) -> 175
C40: Total liabilities | G40: =Currency -> US$'000 | K40: =K33+K38 -> 290
C42: Net assets | G42: =Currency -> US$'000 | K42: =K25-K40 -> 545
C45: Equity
D46: Ordinary equity | G46: =Currency -> US$'000 | K46: 300
E47: Opening retained profits | G47: US$'000 | K47: =K42-SUM(K46,K48,K49) -> 220
E48: NPAT | G48: US$'000 | K48: 25
E49: Dividends declared | G49: US$'000 | K49: 0
D50: Retained profits | G50: US$'000 | K50: =SUM(K47:K49) -> 245
D51: Total equity | G51: US$'000 | K51: =K46+K50 -> 545
C54: ='Balance Sheet'!C54 -> Checks
D56: ='Balance Sheet'!D56 -> PF error check | G56: [1,0] | I56: =IF(ISERROR(I42-I51),1,0) -> 0
D57: ='Balance Sheet'!D57 -> Balance check | G57: [1,0] | I57: =IF(I56<>0,0,(ROUND(I42-I51,Rounding_Accuracy)<>0)*1) -> 0
D58: ='Balance Sheet'!D58 -> Insolvency check | G58: [1,0] | I58: =IF(SUM(I56:I57)<>0,0,(I42<0)*1) -> 0

Sheet Income Statement
A1: =IF(ISERROR(RIGHT(CELL("filename",A1),LEN(CELL("filename",A1))-FIND("]",CELL("filename",A1)))), "", RIGHT(CELL("filename",A1),LEN(CELL("filename",A1))-FIND("]",CELL("filename",A1)))) -> Income Statement
A2: =Model_Name -> Go Skills Model 22 - Revenue Part 2 End.xlsm
A3: Navigator
B4: Error Checks: | F4: =Overall_Error_Check -> 0
J5: =Timing!J5 -> 2020-06-30 | K5: =Timing!K5 -> 2021-06-30 | L5: =Timing!L5 -> 2022-06-30 | M5: =Timing!M5 -> 2023-06-30 | N5: =Timing!N5 -> 2024-06-30
C6: Start Date | J6: =Timing!J6 -> 2019-07-01 | K6: =Timing!K6 -> 2020-07-01 | L6: =Timing!L6 -> 2021-07-01 | M6: =Timing!M6 -> 2022-07-01 | N6: =Timing!N6 -> 2023-07-01
C7: End Date | J7: =Timing!J7 -> 2020-06-30 | K7: =Timing!K7 -> 2021-06-30 | L7: =Timing!L7 -> 2022-06-30 | M7: =Timing!M7 -> 2023-06-30 | N7: =Timing!N7 -> 2024-06-30
C8: Number of Days | J8: =Timing!J8 -> 366 | K8: =Timing!K8 -> 365 | L8: =Timing!L8 -> 365 | M8: =Timing!M8 -> 365 | N8: =Timing!N8 -> 366
C9: Counter | J9: =Timing!J9 -> 1 | K9: =Timing!K9 -> 2 | L9: =Timing!L9 -> 3 | M9: =Timing!M9 -> 4 | N9: =Timing!N9 -> 5
B11: =MAX($B$10:$B10)+1 -> 1 | C11: =A1 -> Income Statement
D13: Revenue | G13: =Currency -> US$'000 | J13: =Calculations!J36 -> 1500 | K13: =Calculations!K36 -> 3090 | L13: =Calculations!L36 -> 4820.4 | M13: =Calculations!M36 -> 6748.56 | N13: =Calculations!N36 -> 8941.842
D14: COGS | G14: =Currency -> US$'000
D15: Gross Profit | G15: =Currency -> US$'000 | J15: =SUM(J13:J14) -> 1500 | K15: =SUM(K13:K14) -> 3090 | L15: 4820.4 | M15: 6748.56 | N15: 8941.842
D17: Wastage | G17: =Currency -> US$'000
D18: Operating expenditure | G18: =Currency -> US$'000
D19: EBITDA | G19: =Currency -> US$'000 | J19: =SUM(J15,J17:J18) -> 1500 | K19: =SUM(K15,K17:K18) -> 3090 | L19: 4820.4 | M19: 6748.56 | N19: 8941.842
D21: Depreciation | G21: =Currency -> US$'000
D22: EBIT | G22: =Currency -> US$'000 | J22: =J19+J21 -> 1500 | K22: =K19+K21 -> 3090 | L22: 4820.4 | M22: 6748.56 | N22: 8941.842
D24: Interest Expense | G24: =Currency -> US$'000
D25: NPBT | G25: =Currency -> US$'000 | J25: =J22+J24 -> 1500 | K25: =K22+K24 -> 3090 | L25: =L22+L24 -> 4820.4 | M25: =M22+M24 -> 6748.56 | N25: =N22+N24 -> 8941.842
D27: Tax Expense | G27: =Currency -> US$'000
D28: NPAT | G28: =Currency -> US$'000 | J28: =J25+J27 -> 1500 | K28: =K25+K27 -> 3090 | L28: =L25+L27 -> 4820.4 | M28: =M25+M27 -> 6748.56 | N28: =N25+N27 -> 8941.842

Sheet Balance Sheet
A1: =IF(ISERROR(RIGHT(CELL("filename",A1),LEN(CELL("filename",A1))-FIND("]",CELL("filename",A1)))), "", RIGHT(CELL("filename",A1),LEN(CELL("filename",A1))-FIND("]",CELL("filename",A1)))) -> Balance Sheet
A2: =Model_Name -> Go Skills Model 22 - Revenue Part 2 End.xlsm
A3: Navigator
B4: Error Checks: | F4: =Overall_Error_Check -> 0
J5: =Timing!J5 -> 2020-06-30 | K5: =Timing!K5 -> 2021-06-30 | L5: =Timing!L5 -> 2022-06-30 | M5: =Timing!M5 -> 2023-06-30 | N5: =Timing!N5 -> 2024-06-30
C6: Start Date | J6: =Timing!J6 -> 2019-07-01 | K6: =Timing!K6 -> 2020-07-01 | L6: =Timing!L6 -> 2021-07-01 | M6: =Timing!M6 -> 2022-07-01 | N6: =Timing!N6 -> 2023-07-01
C7: End Date | J7: =Timing!J7 -> 2020-06-30 | K7: =Timing!K7 -> 2021-06-30 | L7: =Timing!L7 -> 2022-06-30 | M7: =Timing!M7 -> 2023-06-30 | N7: =Timing!N7 -> 2024-06-30
C8: Number of Days | J8: =Timing!J8 -> 366 | K8: =Timing!K8 -> 365 | L8: =Timing!L8 -> 365 | M8: =Timing!M8 -> 365 | N8: =Timing!N8 -> 366
C9: Counter | J9: =Timing!J9 -> 1 | K9: =Timing!K9 -> 2 | L9: =Timing!L9 -> 3 | M9: =Timing!M9 -> 4 | N9: =Timing!N9 -> 5
B11: =MAX($B$10:$B10)+1 -> 1 | C11: =A1 -> Balance Sheet
C13: ='Opening Balance Sheet'!C13 -> Current assets
D14: ='Opening Balance Sheet'!D14 -> Cash | G14: =Currency -> US$'000 | J14: =IF(J$9=1,'Opening Balance Sheet'!$I$14,I14)+'Cash Flow Statement'!J37 -> 1254.098361 | K14: =IF(K$9=1,'Opening Balance Sheet'!$I$14,J14)+'Cash Flow Statement'!K37 -> 4082.054795 | L14: =IF(L$9=1,'Opening Balance Sheet'!$I$14,K14)+'Cash Flow Statement'!L37 -> 8618.005479 | M14: =IF(M$9=1,'Opening Balance Sheet'!$I$14,L14)+'Cash Flow Statement'!M37 -> 15049.60767 | N14: =IF(N$9=1,'Opening Balance Sheet'!$I$14,M14)+'Cash Flow Statement'!N37 -> 23634.92626
D15: ='Opening Balance Sheet'!D15 -> Accounts receivable | G15: =Currency -> US$'000 | J15: =Calculations!J38 -> 245.9016393 | K15: =Calculations!K38 -> 507.9452055 | L15: =Calculations!L38 -> 792.3945205 | M15: =Calculations!M38 -> 1109.352329 | N15: =Calculations!N38 -> 1465.875738
D16: ='Opening Balance Sheet'!D16 -> Inventory | G16: =Currency -> US$'000
D17: ='Opening Balance Sheet'!D17 -> Other current assets | G17: =Currency -> US$'000
D18: ='Opening Balance Sheet'!D18 -> Total current assets | G18: =Currency -> US$'000 | J18: =SUM(J14:J17) -> 1500 | K18: =SUM(K14:K17) -> 4590 | L18: =SUM(L14:L17) -> 9410.4 | M18: =SUM(M14:M17) -> 16158.96 | N18: =SUM(N14:N17) -> 25100.802
C20: ='Opening Balance Sheet'!C20 -> Non-current assets
D21: ='Opening Balance Sheet'!D21 -> PP&E | G21: =Currency -> US$'000
D22: ='Opening Balance Sheet'!D22 -> Deferred tax assets | G22: =Currency -> US$'000
D23: ='Opening Balance Sheet'!D23 -> Total non-current assets | G23: =Currency -> US$'000 | J23: =SUM(J21:J22) -> 0 | K23: =SUM(K21:K22) -> 0 | L23: 0 | M23: 0 | N23: 0
C25: ='Opening Balance Sheet'!C25 -> Total assets | G25: =Currency -> US$'000 | J25: =J18+J23 -> 1500 | K25: =K18+K23 -> 4590 | L25: 9410.4 | M25: 16158.96 | N25: 25100.802
C27: ='Opening Balance Sheet'!C27 -> Current liabilities
D28: ='Opening Balance Sheet'!D28 -> Accounts payable | G28: =Currency -> US$'000
D29: ='Opening Balance Sheet'!D29 -> Interest payable | G29: US$'000
D30: ='Opening Balance Sheet'!D30 -> Dividends payable | G30: US$'000
D31: ='Opening Balance Sheet'!D31 -> Tax payable | G31: US$'000
D32: ='Opening Balance Sheet'!D32 -> Other current liabilities | G32: US$'000
D33: ='Opening Balance Sheet'!D33 -> Total current liabilities | G33: US$'000 | J33: =SUM(J28:J32) -> 0 | K33: =SUM(K28:K32) -> 0 | L33: =SUM(L28:L32) -> 0 | M33: =SUM(M28:M32) -> 0 | N33: =SUM(N28:N32) -> 0
C35: ='Opening Balance Sheet'!C35 -> Non-current liabilities
D36: ='Opening Balance Sheet'!D36 -> Debt | G36: =Currency -> US$'000
D37: ='Opening Balance Sheet'!D37 -> Deferred tax liabilities | G37: =Currency -> US$'000
D38: ='Opening Balance Sheet'!D38 -> Total non-current liabilities | G38: =Currency -> US$'000 | J38: =SUM(J36:J37) -> 0 | K38: =SUM(K36:K37) -> 0 | L38: 0 | M38: 0 | N38: 0
C40: ='Opening Balance Sheet'!C40 -> Total liabilities | G40: =Currency -> US$'000 | J40: =J38+J33 -> 0 | K40: =K38+K33 -> 0 | L40: 0 | M40: 0 | N40: 0
C42: ='Opening Balance Sheet'!C42 -> Net assets | G42: =Currency -> US$'000 | J42: =J25-J40 -> 1500 | K42: =K25-K40 -> 4590 | L42: =L25-L40 -> 9410.4 | M42: =M25-M40 -> 16158.96 | N42: =N25-N40 -> 25100.802
C45: ='Opening Balance Sheet'!C45 -> Equity
D46: ='Opening Balance Sheet'!D46 -> Ordinary equity | G46: =Currency -> US$'000
E47: ='Opening Balance Sheet'!E47 -> Opening retained profits | G47: US$'000 | J47: =IF(J$9=1,'Opening Balance Sheet'!$I$50,I50) -> 0 | K47: =IF(K$9=1,'Opening Balance Sheet'!$I$50,J50) -> 1500 | L47: =IF(L$9=1,'Opening Balance Sheet'!$I$50,K50) -> 4590 | M47: =IF(M$9=1,'Opening Balance Sheet'!$I$50,L50) -> 9410.4 | N47: =IF(N$9=1,'Opening Balance Sheet'!$I$50,M50) -> 16158.96
E48: ='Opening Balance Sheet'!E48 -> NPAT | G48: US$'000 | J48: ='Income Statement'!J28 -> 1500 | K48: ='Income Statement'!K28 -> 3090 | L48: ='Income Statement'!L28 -> 4820.4 | M48: ='Income Statement'!M28 -> 6748.56 | N48: ='Income Statement'!N28 -> 8941.842
A49: w | E49: ='Opening Balance Sheet'!E49 -> Dividends declared | G49: US$'000
D50: ='Opening Balance Sheet'!D50 -> Retained profits | G50: US$'000 | J50: =SUM(J47:J49) -> 1500 | K50: =SUM(K47:K49) -> 4590 | L50: 9410.4 | M50: 16158.96 | N50: 25100.802
D51: ='Opening Balance Sheet'!D51 -> Total equity | G51: US$'000 | J51: =J46+J50 -> 1500 | K51: =K46+K50 -> 4590 | L51: 9410.4 | M51: 16158.96 | N51: 25100.802
C54: Checks
D56: PF error check | G56: =Boolean -> [1,0] | I56: =MIN(SUM(J56:N56),1) -> 0 | J56: =IF(ISERROR(J42-J51),1,0) -> 0 | K56: =IF(ISERROR(K42-K51),1,0) -> 0 | L56: 0 | M56: 0 | N56: 0
D57: Balance check | G57: =Boolean -> [1,0] | I57: =MIN(SUM(J57:N57),1) -> 0 | J57: =IF(J56<>0,0,(ROUND(J42-J51,Rounding_Accuracy)<>0)*1) -> 0 | K57: =IF(K56<>0,0,(ROUND(K42-K51,Rounding_Accuracy)<>0)*1) -> 0 | L57: =IF(L56<>0,0,(ROUND(L42-L51,Rounding_Accuracy)<>0)*1) -> 0 | M57: =IF(M56<>0,0,(ROUND(M42-M51,Rounding_Accuracy)<>0)*1) -> 0 | N57: =IF(N56<>0,0,(ROUND(N42-N51,Rounding_Accuracy)<>0)*1) -> 0
D58: Insolvency check | G58: =Boolean -> [1,0] | I58: =MIN(SUM(J58:N58),1) -> 0 | J58: =IF(SUM(J56:J57)<>0,0,(J42<0)*1) -> 0 | K58: =IF(SUM(K56:K57)<>0,0,(K42<0)*1) -> 0 | L58: 0 | M58: 0 | N58: 0

Sheet Cash Flow Statement
A1: =IF(ISERROR(RIGHT(CELL("filename",A1),LEN(CELL("filename",A1))-FIND("]",CELL("filename",A1)))), "", RIGHT(CELL("filename",A1),LEN(CELL("filename",A1))-FIND("]",CELL("filename",A1)))) -> Cash Flow Statement
A2: =Model_Name -> Go Skills Model 22 - Revenue Part 2 End.xlsm
A3: Navigator
B4: Error Checks: | G4: =Overall_Error_Check -> 0
J5: =Timing!J5 -> 2020-06-30 | K5: =Timing!K5 -> 2021-06-30 | L5: =Timing!L5 -> 2022-06-30 | M5: =Timing!M5 -> 2023-06-30 | N5: =Timing!N5 -> 2024-06-30
C6: Start Date | J6: =Timing!J6 -> 2019-07-01 | K6: =Timing!K6 -> 2020-07-01 | L6: =Timing!L6 -> 2021-07-01 | M6: =Timing!M6 -> 2022-07-01 | N6: =Timing!N6 -> 2023-07-01
C7: End Date | J7: =Timing!J7 -> 2020-06-30 | K7: =Timing!K7 -> 2021-06-30 | L7: =Timing!L7 -> 2022-06-30 | M7: =Timing!M7 -> 2023-06-30 | N7: =Timing!N7 -> 2024-06-30
C8: Number of Days | J8: =Timing!J8 -> 366 | K8: =Timing!K8 -> 365 | L8: =Timing!L8 -> 365 | M8: =Timing!M8 -> 365 | N8: =Timing!N8 -> 366
C9: Counter | J9: =Timing!J9 -> 1 | K9: =Timing!K9 -> 2 | L9: =Timing!L9 -> 3 | M9: =Timing!M9 -> 4 | N9: =Timing!N9 -> 5
B11: =MAX($B$10:$B10)+1 -> 1 | C11: =A1 -> Cash Flow Statement
C13: Direct Cash Flow Statement
D15: Operating cash flow
E16: Cash receipts | G16: =Currency -> US$'000 | J16: =-Calculations!J37 -> 1254.098361 | K16: =-Calculations!K37 -> 2827.956434 | L16: =-Calculations!L37 -> 4535.950685 | M16: =-Calculations!M37 -> 6431.602192 | N16: =-Calculations!N37 -> 8585.318591
F17: Direct cash payments | G17: US$'000
F18: Indirect cash payments | G18: US$'000
E19: Cash payments | G19: US$'000 | J19: =SUM(J17:J18) -> 0 | K19: =SUM(K17:K18) -> 0 | L19: 0 | M19: 0 | N19: 0
E20: Interest paid | G20: US$'000
E21: Tax paid | G21: US$'000
E22: Net Operating cash flow | G22: US$'000 | J22: =SUM(J19:J21,J16) -> 1254.098361 | K22: =SUM(K19:K21,K16) -> 2827.956434 | L22: 4535.950685 | M22: 6431.602192 | N22: 8585.318591
D24: Investing cash flows
E25: Interest received | G25: =Currency -> US$'000
E26: Purchases of Non-Current Assets | G26: =Currency -> US$'000
E27: Net Investing cash flows | G27: =Currency -> US$'000 | J27: =SUM(J25:J26) -> 0 | K27: =SUM(K25:K26) -> 0 | L27: 0 | M27: 0 | N27: 0
D29: Financing cash flows
E30: Debt drawdowns | G30: =Currency -> US$'000
E31: Debt repayments | G31: US$'000
E32: Ordinary equity issuances | G32: US$'000
E33: Ordinary equity buybacks | G33: US$'000
E34: Dividends paid | G34: US$'000
E35: Net Financing cash flows | G35: US$'000 | J35: =SUM(J30:J34) -> 0 | K35: =SUM(K30:K34) -> 0 | L35: 0 | M35: 0 | N35: 0
D37: Net increase / (decrease) in cash held | G37: =Currency -> US$'000 | J37: =J35+J27+J22 -> 1254.098361 | K37: =K35+K27+K22 -> 2827.956434 | L37: 4535.950685 | M37: 6431.602192 | N37: 8585.318591

Sheet Timing
A1: =IF(ISERROR(RIGHT(CELL("filename",A1),LEN(CELL("filename",A1))-FIND("]",CELL("filename",A1)))), "", RIGHT(CELL("filename",A1),LEN(CELL("filename",A1))-FIND("]",CELL("filename",A1)))) -> Timing
A2: =Model_Name -> Go Skills Model 22 - Revenue Part 2 End.xlsm
A3: Navigator
B4: Error Checks: | F4: =Overall_Error_Check -> 0
J5: =J7 -> 2020-06-30 | K5: =K7 -> 2021-06-30 | L5: 2022-06-30 | M5: 2023-06-30 | N5: 2024-06-30
C6: Start Date | J6: =IF(J$9=1,Model_Start_Date,I7+1) -> 2019-07-01 | K6: =IF(K$9=1,Model_Start_Date,J7+1) -> 2020-07-01 | L6: =IF(L$9=1,Model_Start_Date,K7+1) -> 2021-07-01 | M6: =IF(M$9=1,Model_Start_Date,L7+1) -> 2022-07-01 | N6: =IF(N$9=1,Model_Start_Date,M7+1) -> 2023-07-01
C7: End Date | J7: =EOMONTH(J$6,MOD(Periodicity+Reporting_Month_Factor-MONTH(J$6),Periodicity)) -> 2020-06-30 | K7: =EOMONTH(K$6,MOD(Periodicity+Reporting_Month_Factor-MONTH(K$6),Periodicity)) -> 2021-06-30 | L7: =EOMONTH(L$6,MOD(Periodicity+Reporting_Month_Factor-MONTH(L$6),Periodicity)) -> 2022-06-30 | M7: =EOMONTH(M$6,MOD(Periodicity+Reporting_Month_Factor-MONTH(M$6),Periodicity)) -> 2023-06-30 | N7: =EOMONTH(N$6,MOD(Periodicity+Reporting_Month_Factor-MONTH(N$6),Periodicity)) -> 2024-06-30
C8: Number of Days | J8: =J7-J6+1 -> 366 | K8: =K7-K6+1 -> 365 | L8: 365 | M8: 365 | N8: 366
C9: Counter | J9: =N(I9)+1 -> 1 | K9: =N(J9)+1 -> 2 | L9: 3 | M9: 4 | N9: 5
B11: =MAX($B$10:$B10)+1 -> 1 | C11: Timing Assumptions
C13: Data (do not change once modelling has commenced)
D15: Model Start Date | H15: 2019-07-01
D17: Number of Months in a Full Period | H17: 12
D19: Example Reporting Month | H19: 6 | I19: ="e.g. "&TEXT(DATE(YEAR(Model_Start_Date)+IF(Example_Reporting_Month<MONTH(Model_Start_Date),1,0),Example_Reporting_Month+1,1)-1,"dd-Mmm-yy") -> e.g. 30-Jun-20
D21: Reporting Month Factor | H21: =MOD(Example_Reporting_Month-1,Periodicity)+1 -> 6
D23: Months per Year | H23: =Months_in_Year -> 12

Sheet Error Checks
A1: =IF(ISERROR(RIGHT(CELL("filename",A1),LEN(CELL("filename",A1))-FIND("]",CELL("filename",A1)))), "", RIGHT(CELL("filename",A1),LEN(CELL("filename",A1))-FIND("]",CELL("filename",A1)))) -> Error Checks
A2: =Model_Name -> Go Skills Model 22 - Revenue Part 2 End.xlsm
A3: Navigator
B4: Error Checks: | F4: =Overall_Error_Check -> 0
B6: =MAX($B$5:$B5)+1 -> 1 | C6: Error Checks
C8: Summary of Errors
D10: Assumptions
E12: Balance Sheet has no errors | I12: =HL_BS_Errors -> 0
E13: Balance Sheet balances | I13: =HL_BS_Balance -> 0
E14: Insolvency Check for Balance Sheet | I14: =HL_BS_Insolvency -> 0
E15: Opening Balance Sheet has no errors | I15: =HL_Op_BS_Errors -> 0
E16: Opening Balance Sheet balances | I16: =HL_Op_BS_Balance -> 0
E17: Insolvency Check for Opening Balance Sheet | I17: =HL_Op_BS_Insolvency -> 0
E25: =C8 -> Summary of Errors | I25: =MIN(1,SUM(I11:I23)) -> 0

Sheet Change Log
A1: =IF(ISERROR(RIGHT(CELL("filename",A1),LEN(CELL("filename",A1))-FIND("]",CELL("filename",A1)))), "", RIGHT(CELL("filename",A1),LEN(CELL("filename",A1))-FIND("]",CELL("filename",A1)))) -> Change Log
A2: =Model_Name -> Go Skills Model 22 - Revenue Part 2 End.xlsm
A3: Navigator
B4: Error Checks: | F4: =Overall_Error_Check -> 0
B6: =MAX($B$5:$B5)+1 -> 1 | C6: =A1 -> Change Log
C8: Summary
F10: Date | G10: Model Version | H10: Details of change | I10: Worksheet Reference | J10: Row, column, cell reference | K10: Author
F11: 2019-07-01 | G11: Version LB1.01 | H11: I changed it | I11: Change Log | J11: J11 | K11: LB
F12: 2019-07-01 | G12: Version LB1.02 | H12: So did I. | I12: Error Checks | J12: I12 | K12: LB
F13: 2019-07-01 | G13: Version LB1.03 | H13: And me. | I13: Navigator | J13: A1 | K13: Dave
